[Event "Early-Titled-Tuesday-Blitz-February-06-2024"]
[Site "Chess.com"]
[Date "2024.02.06"]
[Round "4"]
[White "koncheto"]
[Black "Leonid_Starozhilov"]
[Result "1-0"]
[WhiteElo "2521"]
[BlackElo "2710"]
[TimeControl "180+1"]
[EndTime "8:40:19 PST"]
[Termination "koncheto won by resignation"]

1. e4 {[%clk 0:03:00.9]} 1... g6 {[%clk 0:02:59.2]} 2. d4 {[%clk 0:03:00.6]}
2... Bg7 {[%clk 0:02:59.7]} 3. c3 {[%clk 0:02:56.5]} 3... d6 {[%clk 0:02:59.1]}
4. Bd3 {[%clk 0:02:56.6]} 4... Nf6 {[%clk 0:02:59.2]} 5. f4 {[%clk 0:02:56.7]}
5... O-O {[%clk 0:02:40.8]} 6. Nf3 {[%clk 0:02:54.8]} 6... c5 {[%clk 0:02:23.4]}
7. e5 {[%clk 0:02:54.8]} 7... Nd5 {[%clk 0:02:18.8]} 8. O-O {[%clk 0:02:52.6]}
8... cxd4 {[%clk 0:02:17.3]} 9. cxd4 {[%clk 0:02:51.4]} 9... Nc6 {[%clk
0:02:16.7]} 10. Nc3 {[%clk 0:02:43.3]} 10... dxe5 {[%clk 0:02:08.1]} 11. fxe5
{[%clk 0:02:42.7]} 11... Bg4 {[%clk 0:02:04.9]} 12. Be4 {[%clk 0:02:39.8]} 12...
Nb6 {[%clk 0:01:43.6]} 13. Ne2 {[%clk 0:01:58.5]} 13... f6 {[%clk 0:01:24.2]}
14. exf6 {[%clk 0:01:45.1]} 14... exf6 {[%clk 0:01:18.5]} 15. h3 {[%clk
0:01:25.2]} 15... Bxf3 {[%clk 0:01:18.4]} 16. Bxf3 {[%clk 0:01:24.5]} 16... f5
{[%clk 0:01:15.8]} 17. Be3 {[%clk 0:01:15]} 17... Kh8 {[%clk 0:01:11.5]} 18. Rc1
{[%clk 0:01:05.4]} 18... Nd5 {[%clk 0:01:07.4]} 19. Bf2 {[%clk 0:00:41.9]} 19...
Qd7 {[%clk 0:00:41.6]} 20. Nc3 {[%clk 0:00:40.4]} 20... Nb6 {[%clk 0:00:27.9]}
21. d5 {[%clk 0:00:30.7]} 21... Ne5 {[%clk 0:00:27.3]} 22. Bd4 {[%clk
0:00:29.4]} 22... Rac8 {[%clk 0:00:20.3]} 23. b3 {[%clk 0:00:23]} 23... Rfe8
{[%clk 0:00:20.5]} 24. Qd2 {[%clk 0:00:15.6]} 24... Kg8 {[%clk 0:00:15.9]} 25.
Bxb6 {[%clk 0:00:10.6]} 25... axb6 {[%clk 0:00:15.9]} 26. Be2 {[%clk 0:00:11]}
26... Nf7 {[%clk 0:00:12.2]} 27. Bb5 {[%clk 0:00:08]} 27... Bxc3 {[%clk
0:00:10.7]} 28. Bxd7 {[%clk 0:00:07.7]} 28... Bxd2 {[%clk 0:00:10.2]} 29. Rxc8
{[%clk 0:00:08.3]} 29... Rxc8 {[%clk 0:00:06.7]} 30. Bxc8 {[%clk 0:00:09.2]}
30... Nd6 {[%clk 0:00:07.5]} 31. Be6+ {[%clk 0:00:08.2]} 31... Kf8 {[%clk
0:00:07.1]} 32. Rd1 {[%clk 0:00:09.1]} 32... Bc3 {[%clk 0:00:06.3]} 33. Rc1
{[%clk 0:00:06.6]} 33... Bd4+ {[%clk 0:00:04.8]} 34. Kf1 {[%clk 0:00:05.6]}
34... Bc5 {[%clk 0:00:05.4]} 35. a3 {[%clk 0:00:04.7]} 35... Bxa3 {[%clk
0:00:03.2]} 36. Rc7 {[%clk 0:00:04.7]} 36... h5 {[%clk 0:00:01.5]} 37. Ke2
{[%clk 0:00:03.2]} 37... Bc5 {[%clk 0:00:02.2]} 38. Kf3 {[%clk 0:00:03.1]} 38...
h4 {[%clk 0:00:02.7]} 39. Kf4 {[%clk 0:00:03]} 39... Ne4 {[%clk 0:00:02.3]} 40.
Ke5 {[%clk 0:00:02.9]} 40... Nd6 {[%clk 0:00:02.2]} 41. Kf6 {[%clk 0:00:02.8]}
41... Ne4+ {[%clk 0:00:02.4]} 42. Kxg6 {[%clk 0:00:03.2]} 42... Ke8 {[%clk
0:00:02.5]} 43. Rxb7 {[%clk 0:00:03.2]} 43... Kd8 {[%clk 0:00:02.8]} 44. Rd7+
{[%clk 0:00:03.5]} 44... Ke8 {[%clk 0:00:03.1]} 45. Rh7 {[%clk 0:00:04.4]} 45...
Nd6 {[%clk 0:00:03]} 46. Bxf5 {[%clk 0:00:04.5]} 46... Kd8 {[%clk 0:00:02.4]}
47. Be6 {[%clk 0:00:05]} 47... Ne4 {[%clk 0:00:02]} 48. Rxh4 {[%clk 0:00:05.3]}
48... Nd6 {[%clk 0:00:01.9]} 49. Rf4 {[%clk 0:00:04.2]} 49... Ke7 {[%clk
0:00:01.6]} 50. h4 {[%clk 0:00:04.3]} 50... Be3 {[%clk 0:00:02.3]} 51. Rf3
{[%clk 0:00:04.6]} 51... Bd4 {[%clk 0:00:02.6]} 52. h5 {[%clk 0:00:05.5]} 52...
Ne8 {[%clk 0:00:02.3]} 53. h6 {[%clk 0:00:05.5]} 53... Nf6 {[%clk 0:00:02]} 54.
h7 {[%clk 0:00:05.6]} 54... Ne8 {[%clk 0:00:01.4]} 55. Rf7+ {[%clk 0:00:05.6]}
55... Kd6 {[%clk 0:00:01.9]} 56. Rd7+ {[%clk 0:00:05.7]} 56... Ke5 {[%clk
0:00:02.4]} 57. Rd8 {[%clk 0:00:06.6]} 1-0

[Event "Early-Titled-Tuesday-Blitz-February-06-2024"]
[Site "Chess.com"]
[Date "2024.02.06"]
[Round "4"]
[White "ScofieldMichael01"]
[Black "topce"]
[Result "1-0"]
[WhiteElo "2617"]
[BlackElo "2394"]
[TimeControl "180+1"]
[EndTime "8:40:19 PST"]
[Termination "ScofieldMichael01 won by checkmate"]

1. d4 {[%clk 0:03:00.9]} 1... e6 {[%clk 0:02:52.6]} 2. Nf3 {[%clk 0:02:58.2]}
2... Nf6 {[%clk 0:02:50.9]} 3. Bf4 {[%clk 0:02:58.3]} 3... d5 {[%clk 0:02:47.9]}
4. e3 {[%clk 0:02:57.2]} 4... c5 {[%clk 0:02:48.2]} 5. c3 {[%clk 0:02:56.7]}
5... Nc6 {[%clk 0:02:43.6]} 6. Nbd2 {[%clk 0:02:56]} 6... cxd4 {[%clk
0:02:43.3]} 7. exd4 {[%clk 0:02:55.8]} 7... Qb6 {[%clk 0:02:43.6]} 8. Qb3 {[%clk
0:02:34]} 8... Bd7 {[%clk 0:02:34.7]} 9. Bd3 {[%clk 0:02:33.3]} 9... Na5 {[%clk
0:02:30.8]} 10. Qc2 {[%clk 0:02:18.5]} 10... Bb5 {[%clk 0:02:24.5]} 11. O-O
{[%clk 0:02:16.9]} 11... Bxd3 {[%clk 0:02:19.6]} 12. Qxd3 {[%clk 0:02:17.8]}
12... Be7 {[%clk 0:02:17]} 13. b4 {[%clk 0:02:15.6]} 13... Nc6 {[%clk
0:02:16.9]} 14. a4 {[%clk 0:02:13.1]} 14... a6 {[%clk 0:02:01]} 15. a5 {[%clk
0:01:47.8]} 15... Qd8 {[%clk 0:02:00.1]} 16. Nb3 {[%clk 0:01:40.4]} 16... Ne4
{[%clk 0:01:55.4]} 17. Nfd2 {[%clk 0:01:16.7]} 17... Nxd2 {[%clk 0:01:39.6]} 18.
Bxd2 {[%clk 0:01:13.3]} 18... O-O {[%clk 0:01:40.5]} 19. f4 {[%clk 0:01:12.1]}
19... g6 {[%clk 0:01:34.3]} 20. g3 {[%clk 0:01:11.6]} 20... Bd6 {[%clk
0:01:21.8]} 21. Kg2 {[%clk 0:01:04.9]} 21... Rc8 {[%clk 0:01:19.6]} 22. b5
{[%clk 0:00:54]} 22... Nb8 {[%clk 0:01:07]} 23. Rfb1 {[%clk 0:00:46]} 23... Qd7
{[%clk 0:00:55.4]} 24. bxa6 {[%clk 0:00:43.2]} 24... bxa6 {[%clk 0:00:50.4]} 25.
Be3 {[%clk 0:00:42.8]} 25... Rc6 {[%clk 0:00:44.7]} 26. Nc5 {[%clk 0:00:42.4]}
26... Bxc5 {[%clk 0:00:31.9]} 27. dxc5 {[%clk 0:00:43.3]} 27... Rfc8 {[%clk
0:00:19.3]} 28. Bd4 {[%clk 0:00:43.3]} 28... R6c7 {[%clk 0:00:18.3]} 29. Rb6
{[%clk 0:00:42.4]} 29... Nc6 {[%clk 0:00:18.7]} 30. Qxa6 {[%clk 0:00:42]} 30...
f6 {[%clk 0:00:17.8]} 31. Bxf6 {[%clk 0:00:35.6]} 31... d4 {[%clk 0:00:17.7]}
32. Qc4 {[%clk 0:00:33.6]} 32... dxc3 {[%clk 0:00:14.6]} 33. Bxc3 {[%clk
0:00:34.5]} 33... Ne7 {[%clk 0:00:10.5]} 34. Qxe6+ {[%clk 0:00:33]} 34... Qxe6
{[%clk 0:00:10.6]} 35. Rxe6 {[%clk 0:00:33.9]} 35... Nd5 {[%clk 0:00:10.8]} 36.
Bd4 {[%clk 0:00:31.7]} 36... Nb4 {[%clk 0:00:09.6]} 37. Re2 {[%clk 0:00:23.9]}
37... Nd3 {[%clk 0:00:08.8]} 38. a6 {[%clk 0:00:21.6]} 38... Nxc5 {[%clk
0:00:07.9]} 39. a7 {[%clk 0:00:22.1]} 39... Nb3 {[%clk 0:00:04.3]} 40. a8=Q
{[%clk 0:00:20.9]} 40... Rxa8 {[%clk 0:00:01.1]} 41. Rxa8+ {[%clk 0:00:20.4]}
41... Kf7 {[%clk 0:00:02]} 42. Be5 {[%clk 0:00:20.8]} 42... Rb7 {[%clk
0:00:01.4]} 43. Rb8 {[%clk 0:00:21]} 43... Rxb8 {[%clk 0:00:01.1]} 44. Bxb8
{[%clk 0:00:21.9]} 44... Nd4 {[%clk 0:00:01.5]} 45. Rd2 {[%clk 0:00:22.4]} 45...
Nf5 {[%clk 0:00:01.4]} 46. Be5 {[%clk 0:00:22]} 46... h5 {[%clk 0:00:01.2]} 47.
h3 {[%clk 0:00:22]} 47... Ke6 {[%clk 0:00:01.1]} 48. g4 {[%clk 0:00:22]} 48...
hxg4 {[%clk 0:00:01.7]} 49. hxg4 {[%clk 0:00:22.9]} 49... Ne3+ {[%clk
0:00:02.5]} 50. Kf3 {[%clk 0:00:23.6]} 50... Nc4 {[%clk 0:00:02.7]} 51. Rc2
{[%clk 0:00:21.7]} 51... Na3 {[%clk 0:00:02.2]} 52. Rc6+ {[%clk 0:00:21.3]}
52... Kf7 {[%clk 0:00:02.4]} 53. Rf6+ {[%clk 0:00:21.3]} 53... Ke7 {[%clk
0:00:01.2]} 54. Rxg6 {[%clk 0:00:21.9]} 54... Nc2 {[%clk 0:00:01.7]} 55. Ke4
{[%clk 0:00:21.5]} 55... Ne1 {[%clk 0:00:02.3]} 56. Rg7+ {[%clk 0:00:22.3]}
56... Kf8 {[%clk 0:00:02.3]} 57. Ra7 {[%clk 0:00:23.2]} 57... Nc2 {[%clk
0:00:02.2]} 58. g5 {[%clk 0:00:23.2]} 58... Ke8 {[%clk 0:00:02.5]} 59. g6 {[%clk
0:00:23.6]} 59... Nb4 {[%clk 0:00:03.3]} 60. g7 {[%clk 0:00:23.5]} 60... Nc6
{[%clk 0:00:04.1]} 61. g8=R# {[%clk 0:00:23.2]} 1-0

[Event "Early-Titled-Tuesday-Blitz-February-06-2024"]
[Site "Chess.com"]
[Date "2024.02.06"]
[Round "4"]
[White "FrenchMonster2002"]
[Black "vaniavindy"]
[Result "1-0"]
[WhiteElo "2372"]
[BlackElo "2152"]
[TimeControl "180+1"]
[EndTime "8:40:20 PST"]
[Termination "FrenchMonster2002 won by checkmate"]

1. e4 {[%clk 0:03:00.9]} 1... c6 {[%clk 0:02:59.5]} 2. Nc3 {[%clk 0:02:59.3]}
2... d5 {[%clk 0:03:00]} 3. Nf3 {[%clk 0:03:00.2]} 3... d4 {[%clk 0:02:59]} 4.
Ne2 {[%clk 0:03:00]} 4... c5 {[%clk 0:02:59.6]} 5. c3 {[%clk 0:03:00.6]} 5...
Nc6 {[%clk 0:02:59.1]} 6. cxd4 {[%clk 0:03:00.9]} 6... cxd4 {[%clk 0:02:58.4]}
7. Qa4 {[%clk 0:02:59.6]} 7... Nf6 {[%clk 0:02:15.2]} 8. Nexd4 {[%clk
0:02:51.2]} 8... Bd7 {[%clk 0:02:11.9]} 9. d3 {[%clk 0:02:22.8]} 9... e5 {[%clk
0:02:07.9]} 10. Nxc6 {[%clk 0:02:17.9]} 10... Bxc6 {[%clk 0:02:05.5]} 11. Qb3
{[%clk 0:02:16.8]} 11... Bc5 {[%clk 0:01:49.8]} 12. Be2 {[%clk 0:02:04.2]} 12...
Qe7 {[%clk 0:00:58]} 13. O-O {[%clk 0:02:00]} 13... O-O {[%clk 0:00:53.4]} 14.
Bg5 {[%clk 0:01:59.1]} 14... Rad8 {[%clk 0:00:42.3]} 15. Rac1 {[%clk 0:01:58.8]}
15... Bb6 {[%clk 0:00:39.1]} 16. h3 {[%clk 0:01:44.8]} 16... h6 {[%clk
0:00:37.2]} 17. Bh4 {[%clk 0:01:39.4]} 17... Rfe8 {[%clk 0:00:18.2]} 18. Qc3
{[%clk 0:01:29]} 18... g5 {[%clk 0:00:11.3]} 19. Bg3 {[%clk 0:01:26]} 19... Nh5
{[%clk 0:00:10]} 20. Bxe5 {[%clk 0:01:21]} 20... f6 {[%clk 0:00:07.4]} 21. Bh2
{[%clk 0:01:09.8]} 21... Bd7 {[%clk 0:00:07.3]} 22. Nxg5 {[%clk 0:01:01.7]}
22... hxg5 {[%clk 0:00:06]} 23. Bxh5 {[%clk 0:01:01.7]} 23... g4 {[%clk
0:00:04.1]} 24. Bxe8 {[%clk 0:00:48.7]} 24... Rxe8 {[%clk 0:00:02]} 25. h4
{[%clk 0:00:41.5]} 25... g3 {[%clk 0:00:01.6]} 26. Bxg3 {[%clk 0:00:41.4]} 26...
Qg7 {[%clk 0:00:02.1]} 27. Kh2 {[%clk 0:00:31]} 27... Be6 {[%clk 0:00:01]} 28.
d4 {[%clk 0:00:28.7]} 28... Bf7 {[%clk 0:00:01.7]} 29. Rfe1 {[%clk 0:00:20.6]}
29... Bg6 {[%clk 0:00:01.4]} 30. e5 {[%clk 0:00:18.2]} 30... Bf7 {[%clk
0:00:02.3]} 31. exf6 {[%clk 0:00:15.9]} 31... Qg4 {[%clk 0:00:02.6]} 32. Rxe8+
{[%clk 0:00:14.3]} 32... Bxe8 {[%clk 0:00:03.5]} 33. Qc8 {[%clk 0:00:13.5]}
33... Qe4 {[%clk 0:00:02.6]} 34. Rc3 {[%clk 0:00:10]} 34... Kf7 {[%clk
0:00:02.9]} 35. Re3 {[%clk 0:00:10]} 35... Qc6 {[%clk 0:00:02.8]} 36. Qxc6
{[%clk 0:00:08.9]} 36... Bxc6 {[%clk 0:00:03.7]} 37. Re7+ {[%clk 0:00:09.1]}
37... Kxf6 {[%clk 0:00:04.4]} 38. Rh7 {[%clk 0:00:07.3]} 38... Bxd4 {[%clk
0:00:04.6]} 39. b3 {[%clk 0:00:06.7]} 39... Kg6 {[%clk 0:00:05.2]} 40. Re7
{[%clk 0:00:06.3]} 40... Bf6 {[%clk 0:00:05.3]} 41. Re6 {[%clk 0:00:06]} 41...
Bd7 {[%clk 0:00:05.9]} 42. Rd6 {[%clk 0:00:05.9]} 42... Bc6 {[%clk 0:00:05.3]}
43. Be5 {[%clk 0:00:05.9]} 43... Kf5 {[%clk 0:00:05.7]} 44. Bxf6 {[%clk
0:00:06.3]} 44... Ke4 {[%clk 0:00:06.3]} 45. Rxc6 {[%clk 0:00:05.9]} 45... bxc6
{[%clk 0:00:04.1]} 46. h5 {[%clk 0:00:06.5]} 46... c5 {[%clk 0:00:04.6]} 47. h6
{[%clk 0:00:06.8]} 47... Kd5 {[%clk 0:00:05.5]} 48. h7 {[%clk 0:00:07.3]} 48...
c4 {[%clk 0:00:05.8]} 49. h8=Q {[%clk 0:00:08.2]} 49... cxb3 {[%clk 0:00:06.7]}
50. axb3 {[%clk 0:00:08.3]} 50... Kc5 {[%clk 0:00:06.9]} 51. Bc3 {[%clk
0:00:09]} 51... Kb5 {[%clk 0:00:07.2]} 52. Qe5+ {[%clk 0:00:09.4]} 52... Ka6
{[%clk 0:00:06.9]} 53. Qd6+ {[%clk 0:00:09.5]} 53... Kb7 {[%clk 0:00:06.9]} 54.
Bd4 {[%clk 0:00:08.9]} 54... Ka8 {[%clk 0:00:07.1]} 55. Qc7 {[%clk 0:00:08.1]}
55... a6 {[%clk 0:00:06.4]} 56. Qa7# {[%clk 0:00:09]} 1-0

[Event "Early-Titled-Tuesday-Blitz-February-06-2024"]
[Site "Chess.com"]
[Date "2024.02.06"]
[Round "4"]
[White "Philippians46"]
[Black "Kostukov_Alex"]
[Result "1-0"]
[WhiteElo "2585"]
[BlackElo "2309"]
[TimeControl "180+1"]
[EndTime "8:40:22 PST"]
[Termination "Philippians46 won by resignation"]

1. d4 {[%clk 0:03:00.9]} 1... g6 {[%clk 0:02:44.4]} 2. c4 {[%clk 0:02:59.2]}
2... Bg7 {[%clk 0:02:44.1]} 3. Nc3 {[%clk 0:03:00.1]} 3... d6 {[%clk 0:02:44.4]}
4. e4 {[%clk 0:02:59.8]} 4... e5 {[%clk 0:02:43.9]} 5. dxe5 {[%clk 0:02:58]}
5... dxe5 {[%clk 0:02:44.8]} 6. Bd3 {[%clk 0:02:49.9]} 6... Ne7 {[%clk
0:02:38.1]} 7. Nge2 {[%clk 0:02:45.7]} 7... O-O {[%clk 0:02:37.9]} 8. O-O {[%clk
0:02:46.3]} 8... Nbc6 {[%clk 0:02:37.9]} 9. Nd5 {[%clk 0:02:42.2]} 9... Nd4
{[%clk 0:02:36.4]} 10. Nxd4 {[%clk 0:02:36.4]} 10... exd4 {[%clk 0:02:34.2]} 11.
Bg5 {[%clk 0:02:36.6]} 11... f6 {[%clk 0:02:32.9]} 12. Bf4 {[%clk 0:02:37.3]}
12... Nxd5 {[%clk 0:02:23]} 13. cxd5 {[%clk 0:02:33]} 13... f5 {[%clk 0:02:15]}
14. Rc1 {[%clk 0:01:38.9]} 14... fxe4 {[%clk 0:02:05.6]} 15. Bxc7 {[%clk
0:01:38.8]} 15... Qe8 {[%clk 0:01:54.3]} 16. Bc4 {[%clk 0:01:20.1]} 16... d3
{[%clk 0:01:34.6]} 17. f3 {[%clk 0:01:09.7]} 17... Bf5 {[%clk 0:01:10.5]} 18.
Qb3 {[%clk 0:00:48.4]} 18... e3 {[%clk 0:00:54]} 19. Bxd3 {[%clk 0:00:46.4]}
19... e2 {[%clk 0:00:54.4]} 20. Bxe2 {[%clk 0:00:23.7]} 20... Qxe2 {[%clk
0:00:52.4]} 21. d6+ {[%clk 0:00:24.6]} 21... Kh8 {[%clk 0:00:52.1]} 22. Rf2
{[%clk 0:00:18.5]} 22... Bd4 {[%clk 0:00:47.7]} 23. Rf1 {[%clk 0:00:12.4]} 23...
Bxf2+ {[%clk 0:00:46.3]} 24. Rxf2 {[%clk 0:00:12.4]} 24... Qe1+ {[%clk
0:00:44.8]} 25. Rf1 {[%clk 0:00:12.8]} 25... Qe5 {[%clk 0:00:42.6]} 26. Qd1
{[%clk 0:00:10]} 26... Qe3+ {[%clk 0:00:39.6]} 27. Kh1 {[%clk 0:00:09.3]} 27...
Bd7 {[%clk 0:00:38.2]} 28. Ba5 {[%clk 0:00:08.3]} 28... Kg8 {[%clk 0:00:36.7]}
29. Re1 {[%clk 0:00:07.5]} 29... Qf4 {[%clk 0:00:35.7]} 30. Bc3 {[%clk
0:00:05.1]} 30... Qf7 {[%clk 0:00:33.9]} 31. Re7 {[%clk 0:00:04.1]} 31... Qf5
{[%clk 0:00:32.4]} 32. Rg7+ {[%clk 0:00:03.8]} 32... Kh8 {[%clk 0:00:32.8]} 33.
Rxd7+ {[%clk 0:00:04.7]} 33... Kg8 {[%clk 0:00:32.8]} 34. Qb3+ {[%clk
0:00:04.4]} 34... Rf7 {[%clk 0:00:32.4]} 35. Re7 {[%clk 0:00:02.4]} 35... Qb1+
{[%clk 0:00:32.2]} 36. Re1 {[%clk 0:00:02.3]} 36... Qf5 {[%clk 0:00:31.4]} 37.
Qc4 {[%clk 0:00:02.5]} 37... Rd8 {[%clk 0:00:30.4]} 38. Qd4 {[%clk 0:00:03]}
38... Rf6 {[%clk 0:00:18.1]} 39. Qxf6 {[%clk 0:00:03.4]} 39... Qxf6 {[%clk
0:00:18.3]} 40. Bxf6 {[%clk 0:00:04.3]} 40... Rxd6 {[%clk 0:00:18.9]} 41. Bc3
{[%clk 0:00:05.2]} 41... b6 {[%clk 0:00:17.9]} 42. h3 {[%clk 0:00:05.7]} 42...
h5 {[%clk 0:00:17.4]} 43. Kh2 {[%clk 0:00:06.6]} 43... a5 {[%clk 0:00:16.1]} 44.
Re7 {[%clk 0:00:06.7]} 44... Kf8 {[%clk 0:00:13.6]} 45. Rb7 {[%clk 0:00:06.5]}
45... Ke8 {[%clk 0:00:11.8]} 46. b4 {[%clk 0:00:06.7]} 46... axb4 {[%clk
0:00:11.5]} 47. Bxb4 {[%clk 0:00:07.6]} 47... Re6 {[%clk 0:00:12.3]} 48. a3
{[%clk 0:00:07.9]} 48... Kd8 {[%clk 0:00:12.5]} 49. g4 {[%clk 0:00:08.4]} 49...
hxg4 {[%clk 0:00:12.6]} 50. hxg4 {[%clk 0:00:09.3]} 50... Kc8 {[%clk 0:00:12.3]}
51. Re7 {[%clk 0:00:09.6]} 51... Rc6 {[%clk 0:00:10.8]} 52. Kg3 {[%clk
0:00:10.3]} 52... Kd8 {[%clk 0:00:10.5]} 53. Re4 {[%clk 0:00:09.8]} 53... Kd7
{[%clk 0:00:10.5]} 54. f4 {[%clk 0:00:10.4]} 54... Rc2 {[%clk 0:00:08.5]} 55. f5
{[%clk 0:00:10.9]} 55... gxf5 {[%clk 0:00:08.5]} 56. gxf5 {[%clk 0:00:11.8]}
56... Rc1 {[%clk 0:00:05.4]} 57. Kf4 {[%clk 0:00:12.7]} 57... Rg1 {[%clk
0:00:05.1]} 58. Ke5 {[%clk 0:00:13.6]} 58... Rg8 {[%clk 0:00:04.4]} 59. Rd4+
{[%clk 0:00:14.5]} 59... Kc6 {[%clk 0:00:04.5]} 60. Rd6+ {[%clk 0:00:14.7]}
60... Kb5 {[%clk 0:00:04.4]} 61. f6 {[%clk 0:00:15.6]} 61... Kc4 {[%clk
0:00:04.1]} 62. Ke6 {[%clk 0:00:16.5]} 62... Re8+ {[%clk 0:00:04]} 63. Kd7
{[%clk 0:00:17]} 63... Re3 {[%clk 0:00:04.7]} 64. f7 {[%clk 0:00:17.8]} 64...
Rf3 {[%clk 0:00:05.2]} 65. Rc6+ {[%clk 0:00:18.2]} 65... Kb5 {[%clk 0:00:05.6]}
66. f8=Q {[%clk 0:00:19.1]} 1-0

[Event "Early-Titled-Tuesday-Blitz-February-06-2024"]
[Site "Chess.com"]
[Date "2024.02.06"]
[Round "4"]
[White "Predator0608"]
[Black "Elegance_Riks"]
[Result "0-1"]
[WhiteElo "2540"]
[BlackElo "2762"]
[TimeControl "180+1"]
[EndTime "8:40:25 PST"]
[Termination "Elegance_Riks won by resignation"]

1. e4 {[%clk 0:03:00.9]} 1... e5 {[%clk 0:02:59.4]} 2. Nf3 {[%clk 0:02:59.2]}
2... Nc6 {[%clk 0:02:59.4]} 3. Bc4 {[%clk 0:02:57.8]} 3... d6 {[%clk 0:02:58.9]}
4. d4 {[%clk 0:02:56.8]} 4... Nf6 {[%clk 0:02:50.8]} 5. Ng5 {[%clk 0:02:48.5]}
5... d5 {[%clk 0:02:42.2]} 6. exd5 {[%clk 0:02:47.8]} 6... Nxd4 {[%clk
0:02:08.9]} 7. d6 {[%clk 0:02:29.9]} 7... Qxd6 {[%clk 0:02:07.7]} 8. Bxf7+
{[%clk 0:02:16.4]} 8... Ke7 {[%clk 0:02:05.5]} 9. c3 {[%clk 0:02:10]} 9... h6
{[%clk 0:02:01.9]} 10. cxd4 {[%clk 0:01:46.3]} 10... hxg5 {[%clk 0:02:00.9]} 11.
Bb3 {[%clk 0:01:46]} 11... exd4 {[%clk 0:01:58.1]} 12. Bxg5 {[%clk 0:01:45.9]}
12... Qe5+ {[%clk 0:01:57.8]} 13. Qe2 {[%clk 0:01:46.5]} 13... Qxe2+ {[%clk
0:01:57.1]} 14. Kxe2 {[%clk 0:01:47.4]} 14... Bf5 {[%clk 0:01:39.1]} 15. Nd2
{[%clk 0:01:40.6]} 15... c5 {[%clk 0:01:37.9]} 16. Nf3 {[%clk 0:01:31.3]} 16...
Bg4 {[%clk 0:01:33.2]} 17. Rae1 {[%clk 0:01:24.3]} 17... Kd7 {[%clk 0:01:30.6]}
18. h3 {[%clk 0:01:03.1]} 18... Re8+ {[%clk 0:01:25.3]} 19. Kd1 {[%clk
0:00:51.3]} 19... Bxf3+ {[%clk 0:01:23.2]} 20. gxf3 {[%clk 0:00:50.7]} 20...
Rxe1+ {[%clk 0:01:23.2]} 21. Rxe1 {[%clk 0:00:48.5]} 21... Bd6 {[%clk
0:01:13.4]} 22. Kd2 {[%clk 0:00:41.9]} 22... Nh5 {[%clk 0:01:08.2]} 23. Kd3
{[%clk 0:00:17.5]} 23... b5 {[%clk 0:01:01.8]} 24. Bd5 {[%clk 0:00:16.2]} 24...
Bf4 {[%clk 0:00:47.1]} 25. Rg1 {[%clk 0:00:11.5]} 25... Bxg5 {[%clk 0:00:46.1]}
26. Rxg5 {[%clk 0:00:12.4]} 26... Kd6 {[%clk 0:00:43.7]} 27. Be4 {[%clk
0:00:08.6]} 27... Nf4+ {[%clk 0:00:43.5]} 28. Kd2 {[%clk 0:00:09.1]} 28... Ne6
{[%clk 0:00:31]} 29. Rg6 {[%clk 0:00:08.5]} 29... Ke5 {[%clk 0:00:28.1]} 30. Rg3
{[%clk 0:00:06.4]} 30... g5 {[%clk 0:00:26]} 31. Kd3 {[%clk 0:00:05.4]} 31...
Nf4+ {[%clk 0:00:25.5]} 32. Kd2 {[%clk 0:00:05.6]} 32... Kf6 {[%clk 0:00:25.9]}
33. Rg1 {[%clk 0:00:04.9]} 33... Rxh3 {[%clk 0:00:25.5]} 34. b3 {[%clk
0:00:05.2]} 34... Rh2 {[%clk 0:00:25.2]} 35. Rc1 {[%clk 0:00:05.3]} 35... Rxf2+
{[%clk 0:00:23.8]} 36. Ke1 {[%clk 0:00:05.8]} 36... Re2+ {[%clk 0:00:22.1]} 37.
Kf1 {[%clk 0:00:06.2]} 37... Rxa2 {[%clk 0:00:20.4]} 38. Rxc5 {[%clk 0:00:06.4]}
38... d3 {[%clk 0:00:20.2]} 39. Rc1 {[%clk 0:00:01.9]} 39... Rh2 {[%clk
0:00:18.7]} 40. Kg1 {[%clk 0:00:01.7]} 40... Rg2+ {[%clk 0:00:18.3]} 41. Kf1
{[%clk 0:00:02.1]} 41... Rh2 {[%clk 0:00:18.2]} 42. Kg1 {[%clk 0:00:02.7]} 42...
Rb2 {[%clk 0:00:18.9]} 43. Rd1 {[%clk 0:00:02.8]} 43... Rxb3 {[%clk 0:00:19.1]}
44. Kf2 {[%clk 0:00:03.4]} 44... Rb2+ {[%clk 0:00:18.9]} 45. Ke3 {[%clk
0:00:04.3]} 45... Rb3 {[%clk 0:00:18.6]} 46. Kd4 {[%clk 0:00:04.5]} 46... a5
{[%clk 0:00:19]} 47. Rg1 {[%clk 0:00:04.4]} 47... a4 {[%clk 0:00:19.3]} 48. Rh1
{[%clk 0:00:05]} 48... a3 {[%clk 0:00:19.2]} 49. Rh6+ {[%clk 0:00:05.6]} 49...
Kg7 {[%clk 0:00:19.7]} 50. Rh7+ {[%clk 0:00:06.3]} 50... Kg8 {[%clk 0:00:19.6]}
51. Ra7 {[%clk 0:00:06.9]} 51... d2 {[%clk 0:00:19.8]} 52. Ke5 {[%clk
0:00:03.5]} 52... d1=Q {[%clk 0:00:18.6]} 53. Ra8+ {[%clk 0:00:02.7]} 53... Kf7
{[%clk 0:00:18.6]} 54. Ra7+ {[%clk 0:00:03.6]} 54... Ke8 {[%clk 0:00:19.1]} 55.
Bc6+ {[%clk 0:00:03.8]} 55... Kd8 {[%clk 0:00:18.6]} 56. Rd7+ {[%clk 0:00:04.4]}
56... Qxd7 {[%clk 0:00:18.2]} 57. Bxd7 {[%clk 0:00:05.3]} 57... Kxd7 {[%clk
0:00:18.8]} 0-1